Cogmind - Beta 12 @@@ ROGUE MODE // 2023.03.19 @ 10:43:08 Player: Exp. Geonium Core Result: Destroyed by DAS Turret with DAS Cannon Performance ------------- Evolutions (1) 500 Regions Visited (5) 1000 Robots Destroyed (43) 215 Value Destroyed (1086) 1086 Prototype IDs (23) 460 Alien Tech Used (0) 0 Bonus (327) 327 TOTAL SCORE: 3588 Bonus ------- High Alert Combat Kills 27 Aligned with FarCom 300 Cogmind --------- Core Integrity 0/400 Matter 300/300 Energy 98/100 System Corruption 3% Temperature Cool (1) Movement Treading (160) Location -9/Exiles Parts ------- > --- POWER (1) -------- (None) > --- PROPULSION (3) --- Light Treads > --- UTILITY (2) ------ Targeting Computer Improved Light Armor Plating > --- WEAPON (3) ------- Autogun > --- INVENTORY (5) ---- Large Matter Pod (150) Large Matter Pod (13) Hardened Medium Armor Plating Hardened Medium Armor Plating Hardened Medium Armor Plating Peak State ------------ > --- POWER ------------ Improved Ion Engine > --- PROPULSION ------- Light Treads Improved Treads Improved Treads > --- UTILITY ---------- Large Storage Unit Targeting Computer > --- WEAPON ----------- Heavy Assault Rifle Autogun Autogun > --- INVENTORY -------- Light Treads Light Treads Light Treads Light Treads Light Treads Targeting Computer Light Armor Plating Light Armor Plating Improved Light Armor Plating Improved Light Armor Plating Improved Light Armor Plating Improved Light Armor Plating Improved Medium Laser Light Assault Rifle Hammer [Rating: 17] Favorites ----------- Power Improved Ion Engine Engine Improved Ion Engine Propulsion Light Treads Treads Light Treads Leg Aluminum Leg Utility Targeting Computer Storage Large Storage Unit Processor Targeting Computer Protection Hardened Medium Armor Plating Weapon Autogun Energy Gun EM Pulse Gun Ballistic Gun Autogun Launcher Improved Grenade Launcher Impact Weapon Hammer Build | -11 -10 -10 -9 -9 -9 ------- Run | Jun Mat Min Mat Min Exi Slots Evolved 2 | . . . 2 . . Power . | . . . . . . Propulsion 1 | . . . 1 . . Utility . | . . . . . . Weapon 1 | . . . 1 . . Parts Attached 40 | . 3 3 23 . 11 Power 3 | . . 1 2 . . Engine 3 | . . 1 2 . . Core . | . . . . . . Reactor . | . . . . . . Propulsion 12 | . . . 8 . 4 Treads 12 | . . . 8 . 4 Leg . | . . . . . . Wheel . | . . . . . . Hover . | . . . . . . Flight . | . . . . . . Utility 8 | . 2 1 3 . 2 Device . | . . . . . . Storage 3 | . 1 . 2 . . Processor 3 | . 1 1 1 . . Hackware . | . . . . . . Protection 2 | . . . . . 2 Artifact . | . . . . . . Weapon 17 | . 1 1 10 . 5 Energy Gun 1 | . . . 1 . . Energy Cannon . | . . . . . . Ballistic Gun 13 | . 1 1 8 . 3 Ballistic Cannon . | . . . . . . Launcher 1 | . . . . . 1 Special Weapon . | . . . . . . Impact Weapon 2 | . . . 1 . 1 Slashing Weapon . | . . . . . . Piercing Weapon . | . . . . . . Special Melee Weapon . | . . . . . . Unidentified Prototypes . | . . . . . . Parts Lost 17 | . . 1 4 . 12 Power 3 | . . 1 1 . 1 Propulsion 6 | . . . 1 . 5 Utility 1 | . . . . . 1 Weapon 7 | . . . 2 . 5 Highest Loss Streak 7 | . . 1 2 . 7 To Critical Strikes 7 | . . . 2 . 5 Average Slot Usage (%) 92 | . 87 98 97 100 82 Engine 9 | . 14 12 10 11 5 Treads 24 | . . . 27 33 25 Leg 5 | . 28 28 5 . . Storage 9 | . 14 14 11 11 4 Processor 10 | . 2 14 11 11 11 Energy Gun 1 | . 14 13 1 . . Ballistic Gun 27 | . 14 14 29 33 27 Impact Weapon 1 | . . . . . 4 Naked Turns . | . . . . . . Heaviest Build 36 | 11 17 20 36 36 36 Greatest Support 66 | 20 20 20 66 60 60 Greatest Overweight (x) 2 | . . . 1 . 2 Average Overweight (x) . | . . . . . . Largest Inventory Capacity 15 | . 10 10 15 15 15 Average Capacity 11 | . 8 10 13 15 9 Most Carried 15 | . 8 10 15 15 15 Average Carried 10 | . 4 8 12 15 7 Final Capacity 15 | 8 10 10 15 15 5 Final Carried 15 | 6 8 10 15 15 5 Class Distribution -------------------- 48% | Gunner 32% | Mutant 18% | Scavenger-Gunner Dominant Class ---------------- Mutant | -10/Materials Mutant | -10/Mines Scavenger-Gunner | -9/Materials Gunner | -9/Mines Gunner | -9/Exiles Resources | -11 -10 -10 -9 -9 -9 ----------- Run | Jun Mat Min Mat Min Exi Matter Collected 1557 | 200 . 87 580 234 456 Remotely . | . . . . . . Salvage Created 1402 | . 57 145 887 287 26 Parts 86 | . 2 7 53 24 . Haulers Intercepted 2 | . 1 . 1 . . Recyclers Shooed . | . . . . . . Parts Field Recycled . | . . . . . . Retrieved Matter . | . . . . . . Parts Self-Destructed . | . . . . . . Prevented . | . . . . . . Kills | -11 -10 -10 -9 -9 -9 ------- Run | Jun Mat Min Mat Min Exi Combat Hostiles Destroyed 42 | . . 5 22 8 7 Guns 36 | . . 5 22 8 1 AOE 6 | . . . . . 6 Classes Destroyed 12 | . 1 2 6 2 1 Worker 2 | . . . . 2 . Tunneler 1 | . . . 1 . . Hauler 2 | . 1 . 1 . . Operator 1 | . . . 1 . . Watcher 2 | . . . 2 . . Swarmer 13 | . . 3 7 3 . Grunt 13 | . . 2 8 3 . Brawler 1 | . . . 1 . . Duelist 3 | . . . 2 1 . Sentry 4 | . . . 4 . . Demolisher 1 | . . . . 1 . Assembled 7 | . . . . . 7 Best Kill Streak 7 | . 1 3 4 5 7 Combat Bots Only 7 | . . 3 3 3 7 Max Kills in Single Turn 4 | . 1 2 1 2 4 Gunslinging . | . . . . . . Exploded 4 | . . . . . 4 Melee . | . . . . . . Uniques/NPCs Destroyed . | . . . . . . Combat | -11 -10 -10 -9 -9 -9 -------- Run | Jun Mat Min Mat Min Exi Damage Taken 3220 | . . 136 1100 333 1651 Core 447 | . . . 183 28 236 Absorbed by Shields . | . . . . . . Core Remaining (%) 100 | 100 . 100 . . . Volleys Fired 123 | . 4 10 73 15 21 Largest 3 | . 2 2 3 3 3 Hottest 83 | . 60 60 83 69 69 Shots Fired 314 | . 8 20 185 45 56 Gun 311 | . 8 20 185 45 53 Cannon . | . . . . . . Launcher 3 | . . . . . 3 Special . | . . . . . . Kinetic 280 | . 4 10 168 45 53 Thermal 17 | . . . 17 . . Explosive 3 | . . . . . 3 Electromagnetic 14 | . 4 10 . . . Robot Hit Streak 21 | . 1 4 21 12 8 Robot Miss Streak 5 | . 3 2 5 1 3 Penetration Max . | . . . . . . Secondary Targets 5 | . . . 2 3 . Max Gunslinging Chain 1 | . . . 1 1 . Shots Hit Robots 214 | . 2 13 118 32 49 Core Hits 83 | . 1 8 41 14 19 Critical Kills . | . . . . . . Critical Parts Destroyed 5 | . . . 3 . 2 Critical Strikes 6 | . . . 3 . 3 Destroy 3 | . . . 2 . 1 Smash 3 | . . . 1 . 2 Melee Attacks 34 | . . . 2 . 32 Impact 34 | . . . 2 . 32 Slashing . | . . . . . . Piercing . | . . . . . . Sneak Attacks . | . . . . . . Combat Hostiles . | . . . . . . Follow-up Attacks . | . . . . . . Damage Inflicted 3590 | . 29 185 1520 531 1325 Guns 2778 | . 29 185 1459 509 596 Cannons . | . . . . . . Explosions 470 | . . . . . 470 Melee 276 | . . . 23 . 253 Ramming 66 | . . . 38 22 6 Kinetic 2572 | . 14 96 1357 509 596 Thermal 102 | . . . 102 . . Explosive 470 | . . . . . 470 Electromagnetic 104 | . 15 89 . . . Impact 276 | . . . 23 . 253 Slashing . | . . . . . . Piercing . | . . . . . . Highest Corruption 3 | . . . 1 1 3 Average Corruption 1 | . . . 1 1 1 Corruption Purged . | . . . . . . Corruption Blocked . | . . . . . . Effects 19 | . . . 6 2 11 Message Errors 6 | . . . 1 1 4 Matter Fused 2 | . . . . . 2 Heat Flow Errors 2 | . . . 1 . 1 Energy Discharges 2 | . . . 1 . 1 Parts Fused 1 | . . . . 1 . Data Loss (minor) 2 | . . . . . 2 Misfires 2 | . . . 1 . 1 Weapon Failures 2 | . . . 2 . . Overload Shots . | . . . . . . Overflow Damage 152 | . . . 23 . 129 Projectiles . | . . . . . . Explosions 65 | . . . . . 65 Melee 87 | . . . 23 . 64 Knockbacks 3 | . . . 1 . 2 Impact 3 | . . . 1 . 2 Kinetic . | . . . . . . Secondary . | . . . . . . Self-Inflicted Damage 68 | . . . . . 68 Shots 2 | . . . . . 2 Rammed 9 | . . . 4 3 2 Targets Rammed 13 | . . . 7 4 2 Kicked . | . . . . . . Crushed 4 | . . . 3 1 . Highest Temperature 190 | . . 37 156 58 190 Average Temperature 51 | . . 21 40 25 90 Received Heat Transfer 416 | . . 51 273 12 80 Siege Activations . | . . . . . . Robots Corrupted . | . . . . . . Combat Hostiles . | . . . . . . Parts Fried 2 | . . . 2 . . Impact Corruptions 4 | . . . 2 . 2 Robots Melted . | . . . . . . Combat Hostiles . | . . . . . . Parts Melted . | . . . . . . Heat Transferred 225 | . . . 225 . . Parts Sabotaged . | . . . . . . Parts Stolen . | . . . . . . Parts Stripped . | . . . . . . Power Chain Reactions . | . . . . . . Missiles Intercepted . | . . . . . . Alert | -11 -10 -10 -9 -9 -9 ------- Run | Jun Mat Min Mat Min Exi Peak Influence 476 | . 22 133 476 372 . Initial 147 | . . 8 51 147 . Average 244 | . 14 66 284 257 . Maximum Alert Level 2 | . . . 2 1 . Low Security (%) 40 | . 100 100 29 34 . Level 1 54 | . . . 62 65 . Level 2 5 | . . . 7 . . Level 3 . | . . . . . . Level 4 . | . . . . . . Level 5 . | . . . . . . High Security . | . . . . . . Max Security . | . . . . . . Squads Dispatched 3 | . . . 2 1 . Investigation 1 | . . . . 1 . Extermination . | . . . . . . Reinforcement 2 | . . . 2 . . Assault . | . . . . . . Garrison . | . . . . . . Intercept . | . . . . . . Searches Triggered . | . . . . . . Construction Impeded . | . . . . . . Haulers Reinforced . | . . . . . . Active Scanning Responses . | . . . . . . Cargo Convoy Interrupts . | . . . . . . Stealth | -11 -10 -10 -9 -9 -9 --------- Run | Jun Mat Min Mat Min Exi Distress Signals 4 | . . . 4 . . Communications Jammed . | . . . . . . Distress Signals . | . . . . . . Times Spotted 65 | . 2 6 38 11 8 Peak Tracking Total 10 | . 2 3 6 3 10 Tactical Retreats 8 | . . 1 2 1 4 Traps | -11 -10 -10 -9 -9 -9 ------- Run | Jun Mat Min Mat Min Exi Traps Triggered . | . . . . . . Indirectly . | . . . . . . Trap Hack Attempts . | . . . . . . Triggered . | . . . . . . Disarmed . | . . . . . . Reprogrammed . | . . . . . . Reused . | . . . . . . Traps Extracted . | . . . . . . Installed . | . . . . . . Triggered . | . . . . . . Machines | -11 -10 -10 -9 -9 -9 ---------- Run | Jun Mat Min Mat Min Exi Machines Disabled 7 | . . . 3 . 4 Max in Single Turn 1 | . . . 1 . 1 Machines Repaired . | . . . . . . Machines Sabotaged . | . . . . . . Overloaded Fab Kills . | . . . . . . Hacking | -11 -10 -10 -9 -9 -9 --------- Run | Jun Mat Min Mat Min Exi Machines Accessed 12 | . . . 10 1 1 Terminals 9 | . . . 9 . . Fabricators . | . . . . . . Repair Stations . | . . . . . . Recycling Units 1 | . . . 1 . . Scanalyzers . | . . . . . . Garrison Access . | . . . . . . Total Hacks 24 | . . . 22 1 1 Successful 3 | . . . 1 1 1 Failed 21 | . . . 21 . . Catastrophic 6 | . . . 6 . . Database Lockouts . | . . . . . . Manual 20 | . . . 19 . 1 Terminals 19 | . . . 19 . . Fabricators . | . . . . . . Repair Stations . | . . . . . . Recycling Units 3 | . . . 3 . . Scanalyzers . | . . . . . . Garrison Access . | . . . . . . Terminal Hacks 2 | . . . . 1 1 Open Door 1 | . . . . 1 . EX-Prototype ID Bank 1 | . . . . . 1 Fabricator Hacks . | . . . . . . Repair Station Hacks . | . . . . . . Recycling Unit Hacks 1 | . . . 1 . . Retrieve Components 1 | . . . 1 . . Scanalyzer . | . . . . . . Garrison Access Hacks . | . . . . . . Unauthorized Hacks . | . . . . . . Terminals . | . . . . . . Fabricators . | . . . . . . Repair Stations . | . . . . . . Recycling Units . | . . . . . . Scanalyzers . | . . . . . . Garrison Access . | . . . . . . Data Cores Recovered . | . . . . . . Used . | . . . . . . Hacking Detections 10 | . . . 10 . . Full Trace Events . | . . . . . . Feedback Events . | . . . . . . Feedback Blocked . | . . . . . . Robot Schematics Acquired . | . . . . . . Robots Built . | . . . . . . Authchips . | . . . . . . Time . | . . . . . . Total Robot Build Rating . | . . . . . . Part Schematics Acquired . | . . . . . . Parts Built . | . . . . . . Authchips . | . . . . . . Time . | . . . . . . Total Part Build Rating . | . . . . . . Parts Repaired . | . . . . . . Time . | . . . . . . Parts Recycled . | . . . . . . Recycled Matter . | . . . . . . Retrieved Matter . | . . . . . . Retrieved Components 5 | . . . 5 . . Parts Scanalyzed . | . . . . . . Part Schematics Acquired . | . . . . . . Parts Damaged . | . . . . . . Bothacking | -11 -10 -10 -9 -9 -9 ------------ Run | Jun Mat Min Mat Min Exi Used RIF Installer . | . . . . . . Robots Hacked . | . . . . . . Non-combat . | . . . . . . Combat . | . . . . . . Robot Hacks Applied . | . . . . . . Relay Couplers Released . | . . . . . . Fabnet Peak Effective % . | . . . . . . Robots Rewired . | . . . . . . Allies Hacked . | . . . . . . Hacks Repelled . | . . . . . . Allies | -11 -10 -10 -9 -9 -9 -------- Run | Jun Mat Min Mat Min Exi Total Allies . | . . . . . . Largest Group . | . . . . . . Highest-Rated Group . | . . . . . . Highest-Rated Ally . | . . . . . . Total Orders . | . . . . . . Ally Attacks . | . . . . . . Total Damage . | . . . . . . Kills . | . . . . . . Allies Corrupted . | . . . . . . Allies Melted . | . . . . . . Intel | -11 -10 -10 -9 -9 -9 ------- Run | Jun Mat Min Mat Min Exi Robot Analysis Total . | . . . . . . Derelict Logs Recovered 1 | . . . . 1 . Drone Launches . | . . . . . . Drone Recoveries . | . . . . . . Exploration | -11 -10 -10 -9 -9 -9 ------------- Run | Jun Mat Min Mat Min Exi Turns Passed 3059 | . 112 192 1364 436 955 Spaces Moved 1590 | 1 76 127 664 244 478 Core 6 | . . . . . 6 Treads 1236 | . . . 520 244 472 Legs 348 | 1 76 127 144 . . Wheels . | . . . . . . Hover . | . . . . . . Flight . | . . . . . . Fastest Speed 120 | 120 120 120 120 160 150 Average Speed 152 | 120 120 120 154 160 159 Slowest Speed 190 | 120 120 120 190 160 160 Overloaded Moves . | . . . . . . Propulsion Burnouts . | . . . . . . Robots Hopped . | . . . . . . Cave-ins Triggered 1 | . . . . . 1 Exploration Rate (%) 42 | 2 19 39 67 63 64 Regions Visited 5 Branch Regions 3 Pre-discovered Areas . | . . . . . . Known Exits Taken 1 | . 1 . . . . Unknown Exits Taken 4 | 1 . 1 1 1 . Scrap Searched 4 | . . 1 . 3 . Spaces Dug 11 | . . . . . 11 Terrain Destroyed 26 | . . . . . 26 Melee 11 | . . . . . 11 Projectile . | . . . . . . AOE 15 | . . . . . 15 Terrain Rammed . | . . . . . . Walls Destroyed . | . . . . . . Machines Disabled . | . . . . . . Actions | -11 -10 -10 -9 -9 -9 --------- Run | Jun Mat Min Mat Min Exi Total 1942 | . 89 147 864 263 579 Wait 61 | . . 1 46 1 13 Move 1584 | . 75 126 663 243 477 Hop . | . . . . . . Pick Up 45 | . 4 4 25 . 12 Fast Attach 13 | . 2 2 7 . 2 Attach 12 | . . 1 5 . 6 Detach 1 | . . . 1 . . Swap 15 | . 1 . 11 . 3 Drop 40 | . 3 3 24 . 10 Fire 123 | . 4 10 73 15 21 Melee 34 | . . . 2 . 32 Ram . | . . . . . . Kick . | . . . . . . Crush 13 | . . . 7 4 2 Escape Stasis 1 | . . . . . 1 Rewire . | . . . . . . Trap . | . . . . . . Miscellaneous . | . . . . . . Route ------- -11/Junkyard -10/Materials -10/Mines -9/Materials (discovered 4 exits: *Mat x3 / *Min) -9/Mines (discovered 3 exits: *Mat / *Exi / [*Zio]) -9/Exiles History --------- Turn | Location | Event 1 | -11/Junkyard | Discovered new exit (range 0) 1 | -11/Junkyard | Entered Materials 66 | -10/Materials | Discovered new exit (range 12) 112 | -10/Materials | Identified exit to Mines 113 | -10/Materials | Entered Mines 259 | -10/Mines | Discovered new exit (range 14) 270 | -10/Mines | Joined a pair of Derelicts in attacking an 0b10 outpost 305 | -10/Mines | Entered Materials 305 | -9/Materials | Evolved 2 slots: Propulsion x1, Weapon x1 318 | -9/Materials | Build established: Mutant 484 | -9/Materials | Discovered new exit (range 16) 839 | -9/Materials | Discovered new exit (range 12) 873 | -9/Materials | Identified exit to Materials 938 | -9/Materials | Build established: Scavenger-Gunner 1153 | -9/Materials | Discovered exit to Materials (range 16) 1509 | -9/Materials | Build established: Gunner 1659 | -9/Materials | Discovered new exit (range 7) 1669 | -9/Materials | Entered Mines 1738 | -9/Mines | Discovered exit to Materials (range 13) 1780 | -9/Mines | Met a Derelict shopkeep closing up shop 1933 | -9/Mines | Assembled infested the area 1953 | -9/Mines | Core integrity fell below 50% 1976 | -9/Mines | Met 8R-AWN 1996 | -9/Mines | A Derelict revealed a hidden shortcut to a safe place 2061 | -9/Mines | Learned Materials trap positions 2099 | -9/Mines | Discovered new exit (range 5) 2105 | -9/Mines | Entered Exiles 2145 | -9/Exiles | Welcomed by 8R-AWN 2173 | -9/Exiles | Met EX-HEX 2262 | -9/Exiles | Learned about 8R-AWN's background 2396 | -9/Exiles | Met EX-BIN 2414 | -9/Exiles | Aligned with FarCom system 2415 | -9/Exiles | Given EX-Vault access code 2452 | -9/Exiles | Opened EX-Vault 2489 | -9/Exiles | Attacked by the Exiles 2533 | -9/Exiles | Destroyed 7 combat bots 2654 | -9/Exiles | Lost 7 parts (1p3n3w) 2913 | -9/Exiles | Build established: Mutant 3058 | -9/Exiles | Crushed by falling debris 3059 | -9/Exiles | Core integrity fell below 20% 3060 | -9/Exiles | Destroyed by DAS Turret with DAS Cannon Last Messages --------------- 02924_ Components damaged. 02929_ /BZ%QQ54LS7L59O &P3EWSN3QFOV 02942_ Lgt. Treads destroyed. 02944_ Acquired 8 matter. 02972_ GFJN8VXQYRFTFA|NRZ37OZI 02988_ System corrupted: Component data lost. 02988_ Extracted 150 matter. 02989_ Extracted 137 matter. 02991_ Acquired Lrg. Matter Pod. 02992_ Extracted 137 matter. 02994_ Extracted 10 matter. 02994_ Acquired Lrg. Matter Pod. 03014_ = ACNN>IJV54=PHR&O2B95| 03034_ Machine disabled. 03058_ The unstable cave ceiling collapses. 03058_ Crushed by falling debris. 03058_ Shotgun destroyed. 03058_ System corrupted by crushing effect (+1). 03058_ Hammer destroyed. 03058_ System corrupted by crushing effect (+1). Map ----- +----------------------------------------------------+ | ?????????????????????????????????????####??# # | | ?????????????????????????????????????"""""?# # | | ????????????????????????????????????"""" ## # | | ???????????????????????????????????#""X" # | | ???????????????????????????????????#" # | | ???????????????????????????????????#" ## # | | ???????????????????????????????????#""""""## # | | ????????????????????????????????????#"####"# # | | ??????????????????????????????????????????#" # | | ???????????????????????????????????????????# # | | ??????????????????????????????????????????## # | | ??????????#######?????????????????????????#" | | ###???????#!!! "#?????????????????????????#" | | #""#??????# "#?????????????????????????#" | | ??????# "#?????????????????????????#" | | #????## ""#??????????########???????#" | | #####" ""#??????????# """#???????#" | | ##" ""???????????#"" """#???????## | | #"" #????????????#"" #????????# | | #????????????#"" #????????#" | | ??# ##???????????#"" "#???????## | | ???## "#??????????## ""#??????## | | ####" ###??????###" " ""#??????# | | """"" ##???### #### ###?????## | | "###"" #####; #%### "######## | | "#?##" "" ##@##X# # ""# | | ##??#" """ "" " " | | """""###???#"# "" """ " | | ######?????#### " " | | ??????????????### * | | ????????????????### | | ??????????????????## | | ???????????????????## | | ????????????????????##" | | ?????????????????????#""" """""" | | ?????????????????????#" ######""" | | ??????????????????????" ""##????##### | | ??????????????????????"" """##?????????# | | ??????????????????????" """????????????? | | ???????????????????????? ??????????????# | | ????????????????????????? ?? #??####???#### | | ????????????????????????? ??? ## ####""" | | ?????????????????????????????? """" | | ????????????????????????????? | | ????????????????????????????? | | ????????????????????????????? | | ????????????????????????????? " " | | ????????????????????????????? ""## ##" | | ?????????????????????????????? ""##?# ### | | ???????????????????????????????? """"????# ### | +----------------------------------------------------+ Best States ------------- Heat Dissipation 28 Energy Generation 12 Energy Capacity 265 Matter Stores 300 Matter Capacity 300 Sight Range 16 Terrain Scan Density 10 Armor Coverage 225 Evasion (%) 55 Targeting Accuracy 5 Recoil Reduction 3 Item Schematics ----------------- None Robot Schematics ------------------ None Fabricated ------------ Nothing Alien Tech Used ----------------- None Achievements -------------- None Challenges ------------ None Game ------ Seed LightpackHeavyMatter Manual? 0 Play Time 00:23:34 Cumulative 336.5 hours Start 2023.03.19 @ 10:15:09 End 2023.03.19 @ 10:43:08 Sessions 1 Manual Loads 0 Difficulty Rogue Special Mode None Game No. 389 Rogue 389 Adventurer 0 Explorer 0 Win Type - Total 11 Types 8/0/2/1/0/0/0/0/0 Lore% 79 Gallery% 88 Achievement% 78 Wizard Run 0 Options --------- ASCII 0 Keyboard 0 Movement Numpad Keybinds 0 Fullscreen 1 Font 18/Terminus Map View 76x50 Tactical HUD 1 Map Filters NONE Filters NONE Steam 1 RUN: 2d7757b7-09d8-4fd5-b8bf-07bc17ec2ddf